Cogmind - Beta 11.1 @@@ ROGUE MODE // 2022.11.23 @ 00:41:42 Player: heebs Result: Self-destructed Performance ------------- Evolutions (1) 500 Regions Visited (2) 400 Robots Destroyed (17) 85 Value Destroyed (429) 429 Prototype IDs (0) 0 Alien Tech Used (0) 0 Bonus (0) 0 TOTAL SCORE: 1414 Bonus ------- None Cogmind --------- Core Integrity 341/400 Matter 253/300 Energy 265/265 System Corruption 0% Temperature Cool (0) Movement Rolling (95) Ox1 Location -9/Materials Parts ------- > --- POWER (2) -------- Improved Ion Engine > --- PROPULSION (2) --- Wheel Wheel > --- UTILITY (3) ------ Large Storage Unit > --- WEAPON (2) ------- Heavy Assault Rifle Heavy Assault Rifle > --- INVENTORY (15) --- Improved Ion Engine Improved Ion Engine Aluminum Leg Wheel Wheel Compact Wheel EM Pulse Gun Heavy Assault Rifle Peak State ------------ > --- POWER ------------ Light Ion Engine Improved Ion Engine > --- PROPULSION ------- Aluminum Leg Aluminum Leg > --- UTILITY ---------- Large Storage Unit Light Armor Plating Light Armor Plating > --- WEAPON ----------- Heavy Assault Rifle Heavy Assault Rifle > --- INVENTORY -------- Improved Ion Engine Improved Ion Engine Wheel Wheel Wheel Wheel Compact Wheel EM Pulse Gun Heavy Assault Rifle [Rating: 13] Favorites ----------- Power Light Ion Engine Engine Light Ion Engine Propulsion Aluminum Leg Leg Aluminum Leg Wheel Wheel Utility Light Armor Plating Storage Large Storage Unit Protection Light Armor Plating Weapon Small Laser Energy Gun Small Laser Ballistic Gun Heavy Assault Rifle Launcher Grenade Launcher Build | -11 -10 -9 ------- Run | Scr Mat Mat Slots Evolved 2 | . . 2 Power 1 | . . 1 Propulsion . | . . . Utility 1 | . . 1 Weapon . | . . . Parts Attached 15 | 5 6 4 Power 2 | 1 . 1 Engine 2 | 1 . 1 Core . | . . . Reactor . | . . . Propulsion 4 | 2 . 2 Treads . | . . . Leg 2 | 2 . . Wheel 2 | . . 2 Hover . | . . . Flight . | . . . Utility 4 | . 3 1 Device . | . . . Storage 2 | . 2 . Processor . | . . . Hackware . | . . . Protection 2 | . 1 1 Artifact . | . . . Weapon 5 | 2 3 . Energy Gun 2 | 2 . . Energy Cannon . | . . . Ballistic Gun 2 | . 2 . Ballistic Cannon . | . . . Launcher 1 | . 1 . Special Weapon . | . . . Impact Weapon . | . . . Slashing Weapon . | . . . Piercing Weapon . | . . . Special Melee Weapon . | . . . Unidentified Prototypes . | . . . Parts Lost 5 | . 1 4 Power 1 | . . 1 Propulsion 1 | . . 1 Utility 2 | . . 2 Weapon 1 | . 1 . Highest Loss Streak 2 | . 1 2 To Critical Strikes . | . . . Average Slot Usage (%) 91 | . 90 93 Engine 15 | . 14 20 Leg 24 | . 28 14 Wheel 2 | . . 7 Storage 12 | . 13 11 Protection 12 | . 10 17 Energy Gun 5 | . 8 . Ballistic Gun 10 | . 5 22 Launcher 6 | . 9 . Naked Turns . | . . . Heaviest Build 42 | 5 32 42 Greatest Support 20 | 20 20 20 Greatest Overweight (x) 2 | . 1 2 Average Overweight (x) . | . . 1 Largest Inventory Capacity 15 | 5 15 15 Average Capacity 11 | 5 14 15 Most Carried 11 | 4 11 10 Average Carried 6 | 2 9 8 Final Capacity 15 | 5 15 15 Final Carried 11 | 3 11 8 Class Distribution -------------------- 100% | Mutant Dominant Class ---------------- Mutant | -10/Materials Mutant | -9/Materials Resources | -11 -10 -9 ----------- Run | Scr Mat Mat Matter Collected 494 | 250 122 122 Remotely . | . . . Salvage Created 480 | 60 153 267 Parts 31 | . 12 19 Haulers Intercepted . | . . . Recyclers Shooed . | . . . Parts Field Recycled . | . . . Retrieved Matter . | . . . Parts Self-Destructed . | . . . Prevented . | . . . Kills | -11 -10 -9 ------- Run | Scr Mat Mat Combat Hostiles Destroyed 14 | 1 7 6 Guns 7 | 1 . 6 AOE 7 | . 7 . Classes Destroyed 6 | 2 2 2 Worker 1 | 1 . . Recycler 1 | . 1 . Watcher 1 | . . 1 Swarmer 6 | . 6 . Grunt 7 | 1 1 5 Sentry 1 | . . 1 Best Kill Streak 3 | 1 3 3 Combat Bots Only 3 | 1 3 3 Max Kills in Single Turn 2 | 1 2 1 Gunslinging . | . . . Exploded 2 | . 2 . Melee . | . . . Uniques/NPCs Destroyed . | . . . Combat | -11 -10 -9 -------- Run | Scr Mat Mat Damage Taken 877 | 52 425 400 Core 118 | 10 49 59 Absorbed by Shields . | . . . Core Remaining (%) 86 | 96 76 . Volleys Fired 39 | 6 9 24 Largest 2 | 2 2 2 Hottest 80 | 80 70 46 Shots Fired 78 | 12 18 48 Gun 69 | 12 9 48 Cannon . | . . . Launcher 9 | . 9 . Special . | . . . Kinetic 48 | . . 48 Thermal 21 | 12 9 . Explosive 9 | . 9 . Electromagnetic . | . . . Robot Hit Streak 6 | 6 5 4 Robot Miss Streak 3 | 1 2 3 Penetration Max . | . . . Secondary Targets . | . . . Shots Hit Robots 42 | 10 6 26 Core Hits 27 | 3 12 12 Critical Kills . | . . . Critical Parts Destroyed . | . . . Critical Strikes . | . . . Melee Attacks . | . . . Impact . | . . . Slashing . | . . . Piercing . | . . . Sneak Attacks . | . . . Combat Hostiles . | . . . Follow-up Attacks . | . . . Damage Inflicted 1017 | 110 526 381 Guns 523 | 108 34 381 Cannons . | . . . Explosions 485 | . 485 . Melee . | . . . Ramming 9 | 2 7 . Kinetic 381 | . . 381 Thermal 142 | 108 34 . Explosive 449 | . 449 . Electromagnetic 36 | . 36 . Impact . | . . . Slashing . | . . . Piercing . | . . . Highest Corruption . | . . . Average Corruption . | . . . Corruption Purged . | . . . Corruption Blocked . | . . . Overload Shots . | . . . Overflow Damage 66 | . 66 . Projectiles . | . . . Explosions 66 | . 66 . Melee . | . . . Knockbacks . | . . . Impact . | . . . Kinetic . | . . . Secondary . | . . . Self-Inflicted Damage 124 | . 124 . Shots 5 | . 5 . Rammed . | . . . Targets Rammed 5 | 1 4 . Kicked 5 | 1 4 . Crushed . | . . . Highest Temperature 120 | 120 96 78 Average Temperature 29 | 55 29 21 Received Heat Transfer 309 | 30 84 195 Siege Activations . | . . . Robots Corrupted . | . . . Combat Hostiles . | . . . Parts Fried . | . . . Impact Corruptions . | . . . Robots Melted . | . . . Combat Hostiles . | . . . Parts Melted . | . . . Heat Transferred 325 | 250 75 . Parts Sabotaged . | . . . Parts Stolen . | . . . Parts Stripped . | . . . Power Chain Reactions . | . . . Missiles Intercepted . | . . . Alert | -11 -10 -9 ------- Run | Scr Mat Mat Peak Influence 320 | 25 320 253 Initial 56 | . . 56 Average 69 | 14 96 112 Maximum Alert Level 1 | . 1 1 Low Security (%) 90 | 100 85 82 Level 1 9 | . 14 17 Level 2 . | . . . Level 3 . | . . . Level 4 . | . . . Level 5 . | . . . High Security . | . . . Max Security . | . . . Squads Dispatched 1 | . 1 . Investigation . | . . . Extermination . | . . . Reinforcement 1 | . 1 . Assault . | . . . Garrison . | . . . Intercept . | . . . Searches Triggered . | . . . Construction Impeded . | . . . Haulers Reinforced . | . . . Active Scanning Responses . | . . . Cargo Convoy Interrupts . | . . . Stealth | -11 -10 -9 --------- Run | Scr Mat Mat Distress Signals 1 | . . 1 Communications Jammed . | . . . Distress Signals . | . . . Times Spotted 21 | 1 10 10 Peak Tracking Total 5 | 1 3 5 Tactical Retreats 1 | . . 1 Traps | -11 -10 -9 ------- Run | Scr Mat Mat Traps Triggered 1 | . 1 . Indirectly . | . . . Trap Hack Attempts . | . . . Triggered . | . . . Disarmed . | . . . Reprogrammed . | . . . Reused . | . . . Traps Extracted . | . . . Installed . | . . . Triggered . | . . . Machines | -11 -10 -9 ---------- Run | Scr Mat Mat Machines Disabled 5 | . 3 2 Max in Single Turn 2 | . 2 1 Machines Sabotaged . | . . . Garrisons Compromised . | . . . Overloaded Fab Kills . | . . . Hacking | -11 -10 -9 --------- Run | Scr Mat Mat Machines Accessed . | . . . Terminals . | . . . Fabricators . | . . . Repair Stations . | . . . Recycling Units . | . . . Scanalyzers . | . . . Garrison Access . | . . . Total Hacks . | . . . Successful . | . . . Failed . | . . . Catastrophic . | . . . Database Lockouts . | . . . Manual . | . . . Terminals . | . . . Fabricators . | . . . Repair Stations . | . . . Recycling Units . | . . . Scanalyzers . | . . . Garrison Access . | . . . Terminal Hacks . | . . . Fabricator Hacks . | . . . Repair Station Hacks . | . . . Recycling Unit Hacks . | . . . Scanalyzer . | . . . Garrison Access Hacks . | . . . Unauthorized Hacks . | . . . Terminals . | . . . Fabricators . | . . . Repair Stations . | . . . Recycling Units . | . . . Scanalyzers . | . . . Garrison Access . | . . . Data Cores Recovered . | . . . Used . | . . . Hacking Detections . | . . . Full Trace Events . | . . . Feedback Events . | . . . Feedback Blocked . | . . . Robot Schematics Acquired . | . . . Robots Built . | . . . Authchips . | . . . Time . | . . . Total Robot Build Rating . | . . . Part Schematics Acquired . | . . . Parts Built . | . . . Authchips . | . . . Time . | . . . Total Part Build Rating . | . . . Parts Repaired . | . . . Time . | . . . Parts Recycled . | . . . Recycled Matter . | . . . Retrieved Matter . | . . . Retrieved Components . | . . . Parts Scanalyzed . | . . . Part Schematics Acquired . | . . . Parts Damaged . | . . . Bothacking | -11 -10 -9 ------------ Run | Scr Mat Mat Used RIF Installer . | . . . Robots Hacked . | . . . Non-combat . | . . . Combat . | . . . Robot Hacks Applied . | . . . Relay Couplers Released . | . . . Fabnet Peak Effective % . | . . . Robots Rewired . | . . . Allies Hacked . | . . . Hacks Repelled . | . . . Allies | -11 -10 -9 -------- Run | Scr Mat Mat Total Allies . | . . . Largest Group . | . . . Highest-Rated Group . | . . . Highest-Rated Ally . | . . . Total Orders . | . . . Ally Attacks . | . . . Total Damage . | . . . Kills . | . . . Allies Corrupted . | . . . Allies Melted . | . . . Intel | -11 -10 -9 ------- Run | Scr Mat Mat Robot Analysis Total . | . . . Derelict Logs Recovered . | . . . Drone Launches . | . . . Drone Recoveries . | . . . Exploration | -11 -10 -9 ------------- Run | Scr Mat Mat Turns Passed 1472 | 534 689 249 Spaces Moved 866 | 432 341 93 Core 22 | 22 . . Treads . | . . . Legs 802 | 410 341 51 Wheels 42 | . . 42 Hover . | . . . Flight . | . . . Fastest Speed 50 | 50 120 95 Average Speed 150 | 116 185 184 Slowest Speed 260 | 120 190 260 Overloaded Moves . | . . . Propulsion Burnouts . | . . . Robots Hopped . | . . . Cave-ins Triggered . | . . . Exploration Rate (%) 18 | 13 29 12 Regions Visited 2 Branch Regions . Pre-discovered Areas . | . . . Known Exits Taken . | . . . Unknown Exits Taken 2 | 1 1 . Scrap Searched . | . . . Spaces Dug . | . . . Terrain Destroyed 43 | . 43 . Melee . | . . . Projectile . | . . . AOE 43 | . 43 . Terrain Rammed . | . . . Walls Destroyed . | . . . Machines Disabled . | . . . Actions | -11 -10 -9 --------- Run | Scr Mat Mat Total 952 | 451 380 121 Wait . | . . . Move 864 | 431 340 93 Hop . | . . . Pick Up 24 | 8 16 . Fast Attach . | . . . Attach 14 | 5 6 3 Detach 1 | . 1 . Swap 1 | . . 1 Drop 4 | . 4 . Fire 39 | 6 9 24 Melee . | . . . Ram . | . . . Kick 5 | 1 4 . Crush . | . . . Escape Stasis . | . . . Rewire . | . . . Trap . | . . . Miscellaneous . | . . . Route ------- -11/Scrapyard -10/Materials -9/Materials History --------- Turn | Location | Event 2 | -11/Scrapyard | Met Revision 17 75 | -11/Scrapyard | Discovered new exit (range 8) 535 | -11/Scrapyard | Entered Materials 536 | -10/Materials | Build established: Mutant 920 | -10/Materials | Discovered new exit (range 11) 1224 | -10/Materials | Entered another Materials area 1224 | -9/Materials | Evolved 2 slots: Power x1, Utility x1 1473 | -9/Materials | Self-destructed Last Messages --------------- Acquired 1 matter. Lgt. Armor Plating destroyed. G-34 Mercenary destroyed. Aluminum Leg destroyed. R-06 Scavenger collects Aluminum Leg. R-06 Scavenger collects Sml. Laser. K-01 Serf collects debris. G-34 Mercenary destroyed. R-06 Scavenger collects Aluminum Leg. W-16 Scout sends out distress signal. Acquired 37 matter. Acquired 41 matter. R-06 Scavenger collects Aluminum Leg. Lgt. Ion Engine destroyed. U-05 Engineer destroyed. G-47 Trooper destroyed. Acquired 43 matter. K-01 Serf collects debris. Lgt. Armor Plating destroyed. Y-45 Defender destroyed. Map ----- +----------------------------------------------------+ | ??????????? ?????????????????????????????????????? | | ???????????/#####????????????????????????????????? | | ??????????? #????????????????????????????????? | | ???????????" ]#????#?#?????????????????????????? | | ??????????"" #?? #?????????????????????????? | | ???????# """ #?? #?????????????????????????? | | ???????# [ +?? +?????????????????????????? | | ???????# """ #?? #?????????????????????????? | | ???????# """ #?? #?????????????????????????? | | ???????? """ #?# #??????????????????????????? | | ?????????? ???# #??????????????????????????? | | ############+###### #???????????????????#??????? | | # #?????????????????? #??????? | | "" # #????????????????? #??????? | | "" # #???????????????? #??????? | | "" + """""" #??############# #??????? | | # """"""" #??# [ #??????? | | # """"""" #??# *=!! #####????????? | | #### """"""" #??#!!%%! #????????????? | | """"""" #??#!=|#####+##????????????? | | #??# =%#?? ????????????? | | #??# [## T #??????????? | | #### """"""" #### = ## #??????????? | | ???# """"""" % [ ## """ #??????????? | | ???# """"""% ## """ #??????????? | | ???# """"""" @ ## """ /??????????? | | ???# """""""% ###/##### ##?????????? | | ???# # ## """ #??????????? | | ???# # """ # ???? #??????????? | | ???? # """ #????? #??????????? | | ???? # """ #????? #??????????? | | ???? # #??????###??????????? | | ???? #= #???????????????????? | | ????# ########???????????????????? | | ????? ##??##+##########??????????????????????????? | | ????? ???????????????????????????????????????????? | | ?????????????????????????????????????????????????? | | ?????????????????????????????????????????????????? | | ?????????????????????????????????????????????????? | | ?????????????????????????????????????????????????? | | ?????????????????????????????????????????????????? | | ?????????????????????????????????????????????????? | | ?????????????????????????????????????????????????? | | ?????????????????????????????????????????????????? | | ?????????????????????????????????????????????????? | | ?????????????????????????????????????????????????? | | ?????????????????????????????????????????????????? | | ?????????????????????????????????????????????????? | | ?????????????????????????????????????????????????? | | ?????????????????????????????????????????????????? | +----------------------------------------------------+ Best States ------------- Heat Dissipation 28 Energy Generation 17 Energy Capacity 290 Matter Stores 300 Matter Capacity 300 Sight Range 16 Terrain Scan Density 10 Armor Coverage 300 Evasion (%) 55 Item Schematics ----------------- None Robot Schematics ------------------ None Fabricated ------------ Nothing Alien Tech Used ----------------- None Achievements -------------- None Challenges ------------ None Game ------ Seed PropulsionPulseCompressor Manual? 0 Play Time 00:15:48 Cumulative 1.4 hours Start 2022.11.23 @ 00:19:52 End 2022.11.23 @ 00:41:42 Sessions 1 Manual Loads 0 Difficulty Rogue Special Mode None Game No. 2 Rogue 2 Adventurer 0 Explorer 0 Win Type - Total 0 Types 0/0/0/0/0/0/0/0/0 Lore% 1 Gallery% 2 Achievement% 2 Wizard Run 0 Options --------- ASCII 0 Keyboard 0 Movement Numpad Keybinds 0 Fullscreen 1 Font 18/CogNarrow Map View 76x50 Tactical HUD 0 Map Filters NONE Filters NONE Steam 1 RUN: e1ed1cad-167c-4757-bb55-0f52ac639897